[Event "LASK Schackstudion IM Tournament"]
[Site "Lund, Sweden"]
[Date "2022.08.17"]
[Round "4.3"]
[White "Rozentalis, Eduardas"]
[Black "Nord, Alexander"]
[Result "1-0"]
[TimeControl "90 minutes + 30 sec increment starting from move 1."]
[WhiteTitle "GM"]
[BlackTitle "CM"]
[WhiteFideId "12800023"]
[BlackFideId "1738135"]
[WhiteElo "2493"]
[BlackElo "2227"]

1. e4 {[%clk 01:30:56]} {[%emt 00:00:03]} c5 {[%clk 01:30:56]} {[%emt
00:00:04]} 2. c3 {[%clk 01:31:01]} {[%emt 00:00:25]} Nf6 {[%clk 01:30:46]}
{[%emt 00:00:40]} 3. e5 {[%clk 01:31:18]} {[%emt 00:00:14]} Nd5 {[%clk
01:31:10]} {[%emt 00:00:05]} 4. Nf3 {[%clk 01:29:16]} {[%emt 00:02:32]} Nc6
{[%clk 01:22:14]} {[%emt 00:09:27]} 5. Bc4 {[%clk 01:28:58]} {[%emt 00:00:47]}
Nb6 {[%clk 01:21:30]} {[%emt 00:01:14]} 6. Bb3 {[%clk 01:29:19]} {[%emt
00:00:09]} d5 {[%clk 01:20:49]} {[%emt 00:01:12]} 7. exd6 {[%clk 01:29:03]}
{[%emt 00:00:46]} e6 {[%clk 01:20:15]} {[%emt 00:01:04]} 8. d4 {[%clk
01:27:26]} {[%emt 00:02:06]} Bxd6 {[%clk 01:15:03]} {[%emt 00:05:42]} 9. O-O
{[%clk 01:26:54]} {[%emt 00:01:02]} h6 {[%clk 01:08:39]} {[%emt 00:06:55]} 10.
dxc5 {[%clk 01:22:02]} {[%emt 00:05:22]} Bxc5 {[%clk 01:09:04]} {[%emt
00:00:05]} 11. Qe2 {[%clk 01:22:27]} {[%emt 00:00:05]} O-O {[%clk 01:04:11]}
{[%emt 00:05:22]} 12. Bf4 {[%clk 01:18:15]} {[%emt 00:04:41]} Nd5 {[%clk
00:55:18]} {[%emt 00:09:24]} 13. Bg3 {[%clk 01:18:00]} {[%emt 00:00:45]} Qb6
{[%clk 00:49:39]} {[%emt 00:06:11]} 14. Nbd2 {[%clk 01:17:01]} {[%emt
00:01:27]} a6 {[%clk 00:45:51]} {[%emt 00:04:20]} 15. Nc4 {[%clk 01:13:16]}
{[%emt 00:04:13]} Qa7 {[%clk 00:45:31]} {[%emt 00:00:50]} 16. Nce5 {[%clk
01:12:45]} {[%emt 00:01:01]} Nxe5 {[%clk 00:37:58]} {[%emt 00:08:04]} 17. Nxe5
{[%clk 01:12:29]} {[%emt 00:00:45]} b5 {[%clk 00:36:04]} {[%emt 00:02:24]} 18.
Bc2 {[%clk 01:08:32]} {[%emt 00:04:27]} f5 {[%clk 00:24:27]} {[%emt 00:12:07]}
19. Ng6 {[%clk 01:03:44]} {[%emt 00:05:18]} Rf6 {[%clk 00:23:36]} {[%emt
00:01:22]} 20. Nf4 {[%clk 01:04:07]} {[%emt 00:00:06]} Nxf4 {[%clk 00:23:15]}
{[%emt 00:00:51]} 21. Bxf4 {[%clk 01:04:31]} {[%emt 00:00:07]} Bb7 {[%clk
00:23:06]} {[%emt 00:00:39]} 22. Kh1 {[%clk 01:04:27]} {[%emt 00:00:33]} Bd5
{[%clk 00:20:56]} {[%emt 00:02:41]} 23. Bb3 {[%clk 01:02:53]} {[%emt 00:02:03]}
Rd8 {[%clk 00:19:14]} {[%emt 00:02:12]} 24. Rad1 {[%clk 01:01:10]} {[%emt
00:02:14]} Qb6 {[%clk 00:18:39]} {[%emt 00:01:05]} 25. f3 {[%clk 00:59:27]}
{[%emt 00:02:12]} Bd6 {[%clk 00:16:23]} {[%emt 00:02:47]} 26. Bxd6 {[%clk
00:57:35]} {[%emt 00:02:22]} Qxd6 {[%clk 00:14:59]} {[%emt 00:01:55]} 27. Rd4
{[%clk 00:53:56]} {[%emt 00:04:08]} Qf8 {[%clk 00:12:00]} {[%emt 00:03:29]} 28.
Rfd1 {[%clk 00:51:49]} {[%emt 00:02:36]} Re8 {[%clk 00:12:14]} {[%emt
00:00:17]} 29. Qe5 {[%clk 00:50:23]} {[%emt 00:01:55]} Kh7 {[%clk 00:10:36]}
{[%emt 00:02:09]} 30. h3 {[%clk 00:48:23]} {[%emt 00:02:30]} Qf7 {[%clk
00:10:47]} {[%emt 00:00:19]} 31. Re1 {[%clk 00:41:38]} {[%emt 00:07:14]} Rd8
{[%clk 00:09:33]} {[%emt 00:01:45]} 32. Kh2 {[%clk 00:39:23]} {[%emt 00:02:45]}
Kh8 {[%clk 00:06:24]} {[%emt 00:03:41]} 33. c4 {[%clk 00:31:17]} {[%emt
00:08:37]} bxc4 {[%clk 00:06:40]} {[%emt 00:00:14]} 34. Bxc4 {[%clk 00:31:42]}
{[%emt 00:00:05]} Qb7 {[%clk 00:05:55]} {[%emt 00:01:14]} 35. b3 {[%clk
00:31:15]} {[%emt 00:00:58]} Rc8 {[%clk 00:04:26]} {[%emt 00:02:00]} 36. Bxd5
{[%clk 00:25:34]} {[%emt 00:06:11]} exd5 {[%clk 00:04:54]} {[%emt 00:00:02]} 37.
Rxd5 {[%clk 00:24:55]} {[%emt 00:01:10]} Rc2 {[%clk 00:04:46]} {[%emt
00:00:38]} 38. Qe8+ {[%clk 00:21:59]} {[%emt 00:03:26]} Kh7 {[%clk 00:05:14]}
{[%emt 00:00:02]} 39. Rd7 {[%clk 00:22:06]} {[%emt 00:00:23]} Qb4 {[%clk
00:05:01]} {[%emt 00:00:43]} 40. Rxg7+ {[%clk 00:20:59]} {[%emt 00:01:37]} Kxg7
{[%clk 00:05:29]} {[%emt 00:00:02]} 41. Re7+ {[%clk 00:21:18]} {[%emt
00:00:11]} Qxe7 {[%clk 00:05:53]} {[%emt 00:00:06]} 42. Qxe7+ {[%clk 00:21:44]}
{[%emt 00:00:04]} Rf7 {[%clk 00:04:58]} {[%emt 00:01:24]} 43. Qe5+ {[%clk
00:21:58]} {[%emt 00:00:16]} Rf6 {[%clk 00:03:42]} {[%emt 00:01:47]} 44. a4
{[%clk 00:20:05]} {[%emt 00:02:23]} Rd2 {[%clk 00:02:15]} {[%emt 00:01:56]} 45.
h4 {[%clk 00:19:07]} {[%emt 00:01:27]} Rdd6 {[%clk 00:02:05]} {[%emt 00:00:41]}
46. h5 {[%clk 00:17:00]} {[%emt 00:02:37]} Rde6 {[%clk 00:02:06]} {[%emt
00:00:29]} 47. Qf4 {[%clk 00:15:53]} {[%emt 00:01:36]} Kf7 {[%clk 00:02:31]}
{[%emt 00:00:06]} 48. b4 {[%clk 00:15:47]} {[%emt 00:00:36]} Kf8 {[%clk
00:02:53]} {[%emt 00:00:08]} 49. Kg3 {[%clk 00:15:39]} {[%emt 00:00:37]} Kf7
{[%clk 00:03:15]} {[%emt 00:00:09]} 50. Qc7+ {[%clk 00:15:39]} {[%emt
00:00:30]} Kg8 {[%clk 00:03:30]} {[%emt 00:00:15]} 51. Kf4 {[%clk 00:15:45]}
{[%emt 00:00:24]} Kf8 {[%clk 00:03:32]} {[%emt 00:00:28]} 52. b5 {[%clk
00:12:50]} {[%emt 00:03:26]} axb5 {[%clk 00:03:55]} {[%emt 00:00:08]} 53. axb5
{[%clk 00:13:18]} {[%emt 00:00:02]} Kg8 {[%clk 00:03:52]} {[%emt 00:00:32]} 54.
g4 {[%clk 00:12:47]} {[%emt 00:01:00]} fxg4+ {[%clk 00:03:58]} {[%emt
00:00:25]} 55. Kxg4 {[%clk 00:13:13]} {[%emt 00:00:04]} Rd6 {[%clk 00:03:21]}
{[%emt 00:01:07]} 56. f4 {[%clk 00:12:59]} {[%emt 00:00:43]} Rb6 {[%clk
00:03:20]} {[%emt 00:00:33]} 57. f5 {[%clk 00:11:48]} {[%emt 00:01:41]} Rbd6
{[%clk 00:02:32]} {[%emt 00:01:18]} 58. Kf4 {[%clk 00:11:14]} {[%emt 00:01:04]}
Rd1 {[%clk 00:01:54]} {[%emt 00:01:07]} 59. Ke5 {[%clk 00:08:00]} {[%emt
00:03:44]} Rf8 {[%clk 00:01:29]} {[%emt 00:00:55]} 60. Qc4+ {[%clk 00:07:43]}
{[%emt 00:00:48]} Kh8 {[%clk 00:01:50]} {[%emt 00:00:09]} 61. f6 {[%clk
00:06:25]} {[%emt 00:01:48]} Re1+ {[%clk 00:01:24]} {[%emt 00:00:56]} 62. Kf5
{[%clk 00:06:23]} {[%emt 00:00:30]} Rg1 {[%clk 00:01:41]} {[%emt 00:00:15]} 63.
b6 {[%clk 00:05:37]} {[%emt 00:01:16]} Rg5+ {[%clk 00:01:18]} {[%emt 00:00:52]}
64. Ke6 {[%clk 00:06:00]} {[%emt 00:00:07]} Re8+ {[%clk 00:00:39]} {[%emt
00:01:09]} 65. Kd7 {[%clk 00:05:54]} {[%emt 00:00:35]} Rb8 {[%clk 00:00:39]}
{[%emt 00:00:30]} 66. Kc7 {[%clk 00:05:05]} {[%emt 00:01:19]} Rgg8 {[%clk
00:01:02]} {[%emt 00:00:07]} 67. b7 {[%clk 00:05:13]} {[%emt 00:00:23]} Rbf8
{[%clk 00:00:58]} {[%emt 00:00:34]} 68. f7 {[%clk 00:01:57]} {[%emt 00:03:45]}
Rg7 {[%clk 00:01:10]} {[%emt 00:00:18]} 69. b8=Q {[%clk 00:02:21]} {[%emt
00:00:06]} Rxb8 {[%clk 00:01:31]} {[%emt 00:00:10]} 70. Kxb8 {[%clk 00:02:46]}
{[%emt 00:00:05]} Rxf7 {[%clk 00:01:56]} {[%emt 00:00:05]} 71. Qe6 {[%clk
00:03:10]} {[%emt 00:00:06]} Rf8+ {[%clk 00:01:00]} {[%emt 00:01:26]} 72. Kc7
{[%clk 00:03:24]} {[%emt 00:00:15]} Rf7+ {[%clk 00:01:12]} {[%emt 00:00:18]} 73.
Kd6 {[%clk 00:03:43]} {[%emt 00:00:12]} Rh7 {[%clk 00:01:09]} {[%emt 00:00:33]}
74. Qe8+ {[%clk 00:03:58]} {[%emt 00:00:15]} Kg7 {[%clk 00:01:34]} {[%emt
00:00:05]} 75. Ke7 {[%clk 00:04:23]} {[%emt 00:00:05]} 1-0

[Event "LASK Schackstudion IM Tournament"]
[Site "Lund, Sweden"]
[Date "2022.08.17"]
[Round "4.4"]
[White "Storme, Isak"]
[Black "Magnusson, Jorgen"]
[Result "1-0"]
[TimeControl "90 minutes + 30 sec increment starting from move 1."]
[WhiteTitle "FM"]
[BlackTitle "FM"]
[WhiteFideId "1728113"]
[BlackFideId "1700880"]
[WhiteElo "2416"]
[BlackElo "2292"]

1. e4 {[%emt 13:27:55]} c6 {[%emt 00:00:17]} 2. d4 {[%emt 00:00:16]} d5 {[%emt
00:00:19]} 3. e5 {[%emt 00:00:11]} Bf5 {[%emt 00:00:44]} 4. Nd2 {[%emt
00:00:23]} e6 {[%emt 00:00:46]} 5. Nb3 {[%emt 00:00:23]} Nd7 {[%emt 00:00:41]}
6. Nf3 {[%emt 00:00:47]} h6 {[%emt 00:00:45]} 7. Be2 {[%emt 00:00:40]} Ne7
{[%emt 00:00:35]} 8. O-O {[%emt 00:01:04]} Qc7 {[%emt 00:00:20]} 9. a4 {[%emt
00:04:57]} g5 {[%emt 00:00:48]} 10. Bd2 {[%emt 00:01:32]} Bh7 {[%emt 00:04:09]}
11. a5 {[%emt 00:09:47]} a6 {[%emt 00:00:15]} 12. Rc1 {[%emt 00:02:14]} O-O-O
{[%emt 00:01:52]} 13. c4 {[%emt 00:05:38]} Kb8 {[%emt 00:01:35]} 14. Bb4 {[%emt
00:05:05]} Nf5 {[%emt 00:01:40]} 15. Bxf8 {[%emt 00:00:31]} Nxf8 {[%emt
00:04:52]} 16. Nc5 {[%emt 00:20:39]} Ka7 {[%emt 00:35:31]} 17. Qa4 {[%emt
00:17:36]} dxc4 {[%emt 00:27:23]} 18. Rxc4 {[%emt 00:01:05]} g4 {[%emt
00:08:14]} 19. Nxa6 {[%emt 00:05:52]} Qe7 {[%emt 00:01:49]} 20. Qb3 {[%emt
00:07:54]} gxf3 {[%emt 00:03:45]} 21. Qb6+ {[%emt 00:00:18]} Ka8 {[%emt
00:00:12]} 22. Nc7+ {[%emt 00:00:12]} Kb8 {[%emt 00:00:21]} 23. a6 {[%emt
00:00:21]} Qxc7 {[%emt 00:04:59]} 24. a7+ {[%emt 00:00:12]} Kc8 {[%emt
00:00:14]} 25. a8=Q+ {[%emt 00:00:11]} Kd7 {[%emt 00:00:24]} 26. Qxc7+ {[%emt
00:00:34]} 1-0

[Event "LASK Schackstudion IM Tournament"]
[Site "Lund, Sweden"]
[Date "2022.08.17"]
[Round "4.5"]
[White "Jogstad, Martin"]
[Black "Larkin, Vadyslav"]
[Result "1-0"]
[TimeControl "90 minutes + 30 sec increment starting from move 1."]
[WhiteTitle "FM"]
[BlackTitle "IM"]
[WhiteFideId "1715364"]
[BlackFideId "14152894"]
[WhiteElo "2354"]
[BlackElo "2447"]

1. d4 {[%clk 01:30:58]} {[%emt 00:00:01]} Nf6 {[%clk 01:30:51]} {[%emt
00:00:11]} 2. c4 {[%clk 01:31:22]} {[%emt 00:00:05]} e6 {[%clk 01:31:09]}
{[%emt 00:00:12]} 3. Nc3 {[%clk 01:31:45]} {[%emt 00:00:05]} Bb4 {[%clk
01:31:34]} {[%emt 00:00:07]} 4. a3 {[%clk 01:32:11]} {[%emt 00:00:05]} Bxc3+
{[%clk 01:31:40]} {[%emt 00:00:23]} 5. bxc3 {[%clk 01:32:39]} {[%emt 00:00:01]}
c5 {[%clk 01:30:39]} {[%emt 00:01:31]} 6. f3 {[%clk 01:33:03]} {[%emt
00:00:06]} Nc6 {[%clk 01:29:40]} {[%emt 00:01:29]} 7. e4 {[%clk 01:33:16]}
{[%emt 00:00:18]} d6 {[%clk 01:25:50]} {[%emt 00:04:20]} 8. Ne2 {[%clk
01:33:33]} {[%emt 00:00:12]} e5 {[%clk 01:25:49]} {[%emt 00:00:32]} 9. d5
{[%clk 01:33:53]} {[%emt 00:00:10]} Na5 {[%clk 01:26:11]} {[%emt 00:00:08]} 10.
Ng3 {[%clk 01:34:01]} {[%emt 00:00:22]} b6 {[%clk 01:24:39]} {[%emt 00:02:03]}
11. Bd3 {[%clk 01:33:43]} {[%emt 00:00:48]} Kd7 {[%clk 01:02:53]} {[%emt
00:22:16]} 12. f4 {[%clk 01:33:06]} {[%emt 00:01:07]} Ne8 {[%clk 01:01:52]}
{[%emt 00:01:30]} 13. O-O {[%clk 01:22:39]} {[%emt 00:10:55]} f6 {[%clk
00:59:00]} {[%emt 00:03:24]} 14. Nf5 {[%clk 01:22:55]} {[%emt 00:00:14]} Kc7
{[%clk 00:59:14]} {[%emt 00:00:16]} 15. Ne3 {[%clk 01:23:18]} {[%emt 00:00:07]}
Ba6 {[%clk 00:56:48]} {[%emt 00:02:57]} 16. g4 {[%clk 01:22:45]} {[%emt
00:01:03]} Rc8 {[%clk 00:51:27]} {[%emt 00:05:51]} 17. Ra2 {[%clk 01:21:55]}
{[%emt 00:01:19]} Kb8 {[%clk 00:51:36]} {[%emt 00:00:21]} 18. Rg2 {[%clk
01:21:53]} {[%emt 00:00:31]} Rc7 {[%clk 00:34:01]} {[%emt 00:18:06]} 19. h4
{[%clk 01:21:43]} {[%emt 00:00:38]} h6 {[%clk 00:32:42]} {[%emt 00:01:51]} 20.
Rf3 {[%clk 01:12:16]} {[%emt 00:09:58]} Qd7 {[%clk 00:30:51]} {[%emt 00:02:20]}
21. f5 {[%clk 01:08:48]} {[%emt 00:03:58]} Rc8 {[%clk 00:27:49]} {[%emt
00:03:32]} 22. Rfg3 {[%clk 01:08:09]} {[%emt 00:01:09]} Nc7 {[%clk 00:27:33]}
{[%emt 00:00:46]} 23. g5 {[%clk 01:06:56]} {[%emt 00:01:43]} hxg5 {[%clk
00:27:56]} {[%emt 00:00:07]} 24. hxg5 {[%clk 01:07:19]} {[%emt 00:00:07]} fxg5
{[%clk 00:20:31]} {[%emt 00:07:56]} 25. Rxg5 {[%clk 01:06:15]} {[%emt
00:01:33]} Rh7 {[%clk 00:20:59]} {[%emt 00:00:03]} 26. Rh5 {[%clk 00:49:37]}
{[%emt 00:17:06]} Rch8 {[%clk 00:21:18]} {[%emt 00:00:12]} 27. Rxh7 {[%clk
00:40:25]} {[%emt 00:09:41]} Rxh7 {[%clk 00:21:43]} {[%emt 00:00:05]} 28. Qg4
{[%clk 00:40:34]} {[%emt 00:00:20]} Ne8 {[%clk 00:21:05]} {[%emt 00:01:08]} 29.
Bd2 {[%clk 00:37:44]} {[%emt 00:03:21]} Rh8 {[%clk 00:13:15]} {[%emt 00:08:20]}
30. Rh2 {[%clk 00:34:40]} {[%emt 00:03:33]} Rxh2 {[%clk 00:13:39]} {[%emt
00:00:07]} 31. Kxh2 {[%clk 00:35:04]} {[%emt 00:00:06]} Bc8 {[%clk 00:03:37]}
{[%emt 00:10:33]} 32. Qg6 {[%clk 00:33:59]} {[%emt 00:01:34]} Qa4 {[%clk
00:02:19]} {[%emt 00:01:50]} 33. Qf7 {[%clk 00:29:39]} {[%emt 00:04:49]} Qd7
{[%clk 00:02:42]} {[%emt 00:00:08]} 34. Qf8 {[%clk 00:23:37]} {[%emt 00:06:31]}
Kc7 {[%clk 00:02:51]} {[%emt 00:00:22]} 35. Kg3 {[%clk 00:18:42]} {[%emt
00:05:24]} Ba6 {[%clk 00:03:16]} {[%emt 00:00:05]} 36. Be1 {[%clk 00:16:59]}
{[%emt 00:02:13]} Nf6 {[%clk 00:03:30]} {[%emt 00:00:15]} 37. Kf3 {[%clk
00:15:10]} {[%emt 00:02:19]} Nb3 {[%clk 00:02:16]} {[%emt 00:01:45]} 38. Bc2
{[%clk 00:12:29]} {[%emt 00:03:11]} Na5 {[%clk 00:00:54]} {[%emt 00:01:53]} 39.
Bh4 {[%clk 00:12:31]} {[%emt 00:00:27]} Nh5 {[%clk 00:00:34]} {[%emt 00:00:49]}
40. Be7 {[%clk 00:04:32]} {[%emt 00:08:29]} Nxc4 {[%clk 00:00:34]} {[%emt
00:00:31]} 41. Nxc4 {[%clk 00:03:21]} {[%emt 00:01:41]} Bxc4 {[%clk 00:01:00]}
{[%emt 00:00:04]} 42. Bxd6+ {[%clk 00:02:42]} {[%emt 00:01:09]} Qxd6 {[%clk
00:01:01]} {[%emt 00:00:29]} 43. Qf7+ {[%clk 00:03:11]} {[%emt 00:00:01]} Qd7
{[%clk 00:00:57]} {[%emt 00:00:35]} 44. Qxh5 {[%clk 00:03:37]} {[%emt
00:00:04]} Ba6 {[%clk 00:00:34]} {[%emt 00:00:53]} 45. Qg6 {[%clk 00:03:35]}
{[%emt 00:00:30]} Kd8 {[%clk 00:00:39]} {[%emt 00:00:26]} 46. d6 {[%clk
00:01:49]} {[%emt 00:02:17]} Qb5 {[%clk 00:00:49]} {[%emt 00:00:19]} 47. Qg5+
{[%clk 00:01:26]} {[%emt 00:00:53]} Kc8 {[%clk 00:01:05]} {[%emt 00:00:13]} 48.
Qg2 {[%clk 00:00:40]} {[%emt 00:01:16]} Qc4 {[%clk 00:01:12]} {[%emt 00:00:24]}
49. d7+ {[%clk 00:00:47]} {[%emt 00:00:23]} Kc7 {[%clk 00:01:39]} {[%emt
00:00:03]} 50. Qd2 {[%clk 00:00:46]} {[%emt 00:00:30]} Qf1+ {[%clk 00:02:06]}
{[%emt 00:00:04]} 51. Kg3 {[%clk 00:00:56]} {[%emt 00:00:20]} Qg1+ {[%clk
00:02:03]} {[%emt 00:00:32]} 52. Kh4 {[%clk 00:01:05]} {[%emt 00:00:21]} Qh1+
{[%clk 00:01:14]} {[%emt 00:01:20]} 53. Kg3 {[%clk 00:01:08]} {[%emt 00:00:25]}
Qh8 {[%clk 00:01:12]} {[%emt 00:00:35]} 54. Qd5 {[%clk 00:01:05]} {[%emt
00:00:32]} Qf8 {[%clk 00:00:52]} {[%emt 00:00:50]} 55. Ba4 {[%clk 00:00:41]}
{[%emt 00:00:55]} b5 {[%clk 00:00:52]} {[%emt 00:00:29]} 56. Qxe5+ {[%clk
00:00:52]} {[%emt 00:00:19]} Kxd7 {[%clk 00:01:18]} {[%emt 00:00:04]} 57. Qe6+
{[%clk 00:01:02]} {[%emt 00:00:21]} Kc7 {[%clk 00:01:40]} {[%emt 00:00:08]} 58.
Qxa6 {[%clk 00:01:22]} {[%emt 00:00:09]} bxa4 {[%clk 00:02:07]} {[%emt
00:00:04]} 59. Qxa7+ {[%clk 00:01:42]} {[%emt 00:00:10]} Kd6 {[%clk 00:02:08]}
{[%emt 00:00:29]} 60. Qa6+ {[%clk 00:01:16]} {[%emt 00:00:57]} Kc7 {[%clk
00:02:21]} {[%emt 00:00:17]} 61. Qa7+ {[%clk 00:01:24]} {[%emt 00:00:21]} Kd6
{[%clk 00:02:46]} {[%emt 00:00:05]} 62. Qxa4 {[%clk 00:01:34]} {[%emt
00:00:20]} Qb8 {[%clk 00:00:58]} {[%emt 00:02:18]} 63. Qc4 {[%clk 00:00:45]}
{[%emt 00:01:19]} Kc6+ {[%clk 00:01:12]} {[%emt 00:00:16]} 64. Kf3 {[%clk
00:00:56]} {[%emt 00:00:19]} Qh8 {[%clk 00:01:05]} {[%emt 00:00:37]} 65. Qd5+
{[%clk 00:01:10]} {[%emt 00:00:16]} Kb6 {[%clk 00:01:16]} {[%emt 00:00:18]} 66.
Qd6+ {[%clk 00:01:02]} {[%emt 00:00:38]} Kb5 {[%clk 00:01:42]} {[%emt
00:00:04]} 67. Qd3+ {[%clk 00:01:14]} {[%emt 00:00:18]} Kb6 {[%clk 00:01:59]}
{[%emt 00:00:14]} 68. Kg4 {[%clk 00:00:55]} {[%emt 00:00:49]} Qh2 {[%clk
00:01:47]} {[%emt 00:00:42]} 69. Qd8+ {[%clk 00:01:00]} {[%emt 00:00:25]} Kb5
{[%clk 00:02:02]} {[%emt 00:00:15]} 70. Qd7+ {[%clk 00:01:21]} {[%emt
00:00:08]} Kb6 {[%clk 00:02:17]} {[%emt 00:00:16]} 71. Qe6+ {[%clk 00:01:29]}
{[%emt 00:00:21]} Kb5 {[%clk 00:02:31]} {[%emt 00:00:16]} 72. c4+ {[%clk
00:01:38]} {[%emt 00:00:21]} Ka5 {[%clk 00:02:39]} {[%emt 00:00:23]} 73. Kg5
{[%clk 00:00:55]} {[%emt 00:01:12]} Qg2 {[%clk 00:02:55]} {[%emt 00:00:14]} 74.
Kh5 {[%clk 00:01:15]} {[%emt 00:00:09]} Qg3 {[%clk 00:03:21]} {[%emt 00:00:05]}
75. e5 {[%clk 00:01:09]} {[%emt 00:00:37]} Qg1 {[%clk 00:01:18]} {[%emt
00:02:32]} 76. f6 {[%clk 00:01:12]} {[%emt 00:00:27]} Qb1 {[%clk 00:01:45]}
{[%emt 00:00:04]} 77. fxg7 {[%clk 00:00:48]} {[%emt 00:00:55]} Qh7 {[%clk
00:02:10]} {[%emt 00:00:05]} 78. Qh6 {[%clk 00:01:01]} {[%emt 00:00:16]} Qf5
{[%clk 00:02:36]} {[%emt 00:00:05]} 79. Qg5 {[%clk 00:01:23]} {[%emt 00:00:09]}
Qh7 {[%clk 00:02:50]} {[%emt 00:00:16]} 80. Kg4 {[%clk 00:01:23]} {[%emt
00:00:29]} Qe4+ {[%clk 00:03:16]} {[%emt 00:00:05]} 81. Kg3 {[%clk 00:01:30]}
{[%emt 00:00:23]} Qd3+ {[%clk 00:03:13]} {[%emt 00:00:33]} 82. Kf4 {[%clk
00:01:04]} {[%emt 00:00:55]} Qf1+ {[%clk 00:03:24]} {[%emt 00:00:20]} 83. Ke4
{[%clk 00:00:59]} {[%emt 00:00:35]} Qxc4+ {[%clk 00:03:49]} {[%emt 00:00:05]}
84. Kf5 {[%clk 00:01:16]} {[%emt 00:00:13]} Qf7 {[%clk 00:02:26]} {[%emt
00:01:54]} 85. Qf6 {[%clk 00:01:42]} {[%emt 00:00:04]} Qh5 {[%clk 00:02:51]}
{[%emt 00:00:04]} 86. Ke6 {[%clk 00:02:01]} {[%emt 00:00:11]} Qe8+ {[%clk
00:00:40]} {[%emt 00:02:42]} 87. Kd5 {[%clk 00:01:54]} {[%emt 00:00:36]} Qd7
{[%clk 00:00:48]} {[%emt 00:00:22]} 88. Kxc5 {[%clk 00:01:45]} {[%emt
00:00:38]} Qc7 {[%clk 00:01:13]} {[%emt 00:00:05]} 89. Kd5 {[%clk 00:01:56]}
{[%emt 00:00:18]} Qd7 {[%clk 00:01:40]} {[%emt 00:00:04]} 90. Kc5 {[%clk
00:01:29]} {[%emt 00:00:56]} Qc7 {[%clk 00:02:05]} {[%emt 00:00:06]} 91. Kd4
{[%clk 00:01:53]} {[%emt 00:00:05]} Qd7+ {[%clk 00:02:26]} {[%emt 00:00:10]} 92.
Ke3 {[%clk 00:02:00]} {[%emt 00:00:22]} Qh3+ {[%clk 00:02:40]} {[%emt
00:00:16]} 93. Kf4 {[%clk 00:02:18]} {[%emt 00:00:13]} Qf1+ {[%clk 00:02:38]}
{[%emt 00:00:32]} 94. Kg5 {[%clk 00:02:39]} {[%emt 00:00:09]} Qd3 {[%clk
00:02:28]} {[%emt 00:00:40]} 95. e6 {[%clk 00:02:44]} {[%emt 00:00:24]} 1-0

[Event "LASK Schackstudion IM Tournament"]
[Site "Lund, Sweden"]
[Date "2022.08.17"]
[Round "5.1"]
[White "Jepson, Christian"]
[Black "Kristensen, Kaare Hove"]
[Result "1/2-1/2"]
[TimeControl "90 minutes + 30 sec increment starting from move 1."]
[WhiteTitle "IM"]
[BlackTitle "IM"]
[WhiteFideId "1701185"]
[BlackFideId "1400940"]
[WhiteElo "2395"]
[BlackElo "2274"]

1. c4 {[%emt 00:01:00]} Nf6 {[%emt 00:01:23]} 2. Nf3 {[%emt 00:00:13]} b6
{[%emt 00:00:30]} 3. g3 {[%emt 00:00:17]} Bb7 {[%emt 00:00:15]} 4. Bg2 {[%emt
00:00:05]} g6 {[%emt 00:00:16]} 5. b3 {[%emt 00:00:39]} Bg7 {[%emt 00:00:36]} 6.
Bb2 {[%emt 00:00:08]} O-O {[%emt 00:00:09]} 7. O-O {[%emt 00:00:42]} c5 {[%emt
00:00:23]} 8. d4 {[%emt 00:05:15]} d5 {[%emt 00:00:12]} 9. dxc5 {[%clk
01:21:39]} {[%emt 00:05:02]} dxc4 {[%clk 01:30:45]} {[%emt 00:00:33]} 10. Qxd8
{[%clk 01:16:10]} {[%emt 00:05:58]} Rxd8 {[%clk 01:31:01]} {[%emt 00:00:14]} 11.
cxb6 {[%clk 01:16:34]} {[%emt 00:00:07]} axb6 {[%clk 01:31:13]} {[%emt
00:00:18]} 12. bxc4 {[%clk 01:15:57]} {[%emt 00:01:08]} Rc8 {[%clk 01:21:54]}
{[%emt 00:09:49]} 13. Nbd2 {[%clk 01:15:06]} {[%emt 00:01:21]} Nbd7 {[%clk
01:21:14]} {[%emt 00:01:09]} 14. Rfc1 {[%clk 01:09:51]} {[%emt 00:05:45]} Ra4
{[%clk 01:08:04]} {[%emt 00:13:40]} 15. Ne5 {[%clk 00:51:41]} {[%emt 00:18:40]}
Bxg2 {[%clk 01:07:22]} {[%emt 00:01:11]} 16. Kxg2 {[%clk 00:52:00]} {[%emt
00:00:11]} Nxe5 {[%clk 01:00:21]} {[%emt 00:07:31]} 17. Bxe5 {[%clk 00:52:22]}
{[%emt 00:00:07]} Ne4 {[%clk 00:59:49]} {[%emt 00:01:02]} 18. Nxe4 {[%clk
00:43:32]} {[%emt 00:09:21]} Bxe5 {[%clk 00:59:56]} {[%emt 00:00:23]} 19. Rab1
{[%clk 00:43:49]} {[%emt 00:00:13]} Raxc4 {[%clk 00:59:41]} {[%emt 00:00:45]}
20. Rxc4 {[%clk 00:43:38]} {[%emt 00:00:41]} 1/2-1/2